[Event "6th Karoun Masters Cup 2019"]
[Site "Ahvaz"]
[Date "2019.02.21"]
[Round "1.1"]
[White "Grigoryan, Karen H."]
[Black "Gaboyan, Susanna"]
[Result "1/2-1/2"]
[ECO "D90"]
[WhiteElo "2590"]
[BlackElo "2133"]
[Annotator "ChessBase"]
[PlyCount "112"]
[EventDate "2019.02.21"]
[EventType "swiss"]
[EventRounds "9"]
[EventCountry "IRI"]
[SourceTitle "playchess.com"]
[Source "ChessBase"]
[SourceQuality "1"]
[TimeControl "5400+30"]

1. d4 {[%emt 0:00:00]} Nf6 {[%emt 0:00:00]} 2. c4 {[%emt 0:00:00]} g6 {[%emt 0:00:00]} 3. Nc3 {[%emt 0:01:21]} d5 {[%emt 0:00:04]} 4. Nf3 {[%emt 0:01:43]} Bg7 {[%emt 0:00:13]} 5. h4 {[%emt 0:00:12]} c6 {[%emt 0:13:59]} 6. Bg5 {[%emt 0:00:40]} Ne4 {[%emt 0:17:35]} 7. cxd5 {[%emt 0:09:18]} cxd5 {[%emt 0:07:41]} 8. Bf4 {[%emt 0:02:18]} Nc6 {[%emt 0:04:56]} 9. e3 {[%emt 0:06:59]} Qa5 {[%emt 0:14:03]} 10. Qb3 {[%emt 0:06:12]} Nxc3 {[%emt 0:03:49]} 11. bxc3 {[%emt 0:04:35]} Bg4 {[%emt 0:07:24]} 12. Be2 {[%emt 0:00:56]} O-O {[%emt 0:02:18]} 13. O-O {[%emt 0:01:53]} e5 {[%emt 0:05:45]} 14. dxe5 {[%emt 0:04:39]} Nxe5 {[%emt 0:03:28]} 15. Bxe5 {[%emt 0:00:16]} Bxe5 {[%emt 0:00:25]} 16. Nxe5 {[%emt 0:00:10]} Bxe2 {[%emt 0:00:18]} 17. Rfe1 {[%emt 0:00:22]} Bc4 {[%emt 0:01:03]} 18. Qxb7 {[%emt 0:03:08]} Qxc3 {[%emt 0:00:33]} 19. Nd7 {[%emt 0:11:54]} Rfd8 {[%emt 0:00:21]} 20. Rac1 {[%emt 0:00:52]} Qg7 {[%emt 0:01:07]} 21. e4 {[%emt 0:01:03]} f6 {[%emt 0:10:15]} 22. exd5 {[%emt 0:00:38]} Qxd7 {[%emt 0:00:03]} 23. Qxd7 {[%emt 0:00:07]} Rxd7 {[%emt 0:00:04]} 24. Rxc4 {[%emt 0:00:06]} Rad8 {[%emt 0:01:41]} 25. Ra4 {[%emt 0:00:37]} Kf7 {[%emt 0:02:08]} 26. Kh2 {[%emt 0:03:20]} Rb8 {[%emt 0:01:47]} 27. Ra5 {[%emt 0:00:18]} Rb2 {[%emt 0:00:25]} 28. f3 {[%emt 0:03:22]} Rd2 {[%emt 0:00:21]} 29. Ra6 {[%emt 0:00:16]} R2xd5 {[%emt 0:01:01]} 30. Ree6 {[%emt 0:00:07]} Rf5 {[%emt 0:01:01]} 31. Rec6 {[%emt 0:00:25]} Kg7 {[%emt 0:00:32]} 32. Rc4 {[%emt 0:02:56]} Re5 {[%emt 0:00:20]} 33. Rca4 {[%emt 0:00:52]} Ree7 {[%emt 0:00:13]} 34. h5 {[%emt 0:00:06]} gxh5 {[%emt 0:00:46]} 35. Rf4 {[%emt 0:00:18]} Re2 {[%emt 0:01:07]} 36. Kh3 {[%emt 0:01:09]} Rdd2 {[%emt 0:00:37]} 37. Rxa7+ {[%emt 0:01:44]} Kg6 {[%emt 0:00:12]} 38. Ra6 {[%emt 0:00:35]} Rxg2 {[%emt 0:00:02]} 39. Rfxf6+ {[%emt 0:00:52]} Kg7 {[%emt 0:00:05]} 40. Rfc6 {[%emt 0:00:45]} Rxa2 {[%emt 0:01:46]} 41. Rc7+ {[%emt 0:00:06]} Kg8 {[%emt 0:00:23]} 42. Rd6 {[%emt 0:02:13]} Rad2 {[%emt 0:00:14]} 43. Rh6 {[%emt 0:00:13]} Rg7 {[%emt 0:00:17]} 44. Rc8+ {[%emt 0:00:05]} Kf7 {[%emt 0:00:02]} 45. Rxh5 {[%emt 0:00:13]} Rdg2 {[%emt 0:01:14]} 46. Rc7+ {[%emt 0:00:50]} Kf6 {[%emt 0:00:04]} 47. Rc6+ {[%emt 0:00:19]} Ke7 {[%emt 0:00:14]} 48. Ra5 {[%emt 0:04:07]} R2g3+ {[%emt 0:01:12]} 49. Kh4 {[%emt 0:00:06]} Rg1 {[%emt 0:00:13]} 50. Ra7+ {[%emt 0:01:08]} Kd8 {[%emt 0:00:02]} 51. Rxg7 {[%emt 0:00:06]} Rxg7 {[%emt 0:00:07]} 52. f4 {[%emt 0:00:17]} Ke7 {[%emt 0:00:14]} 53. Kh5 {[%emt 0:00:10]} Kf7 {[%emt 0:00:35]} 54. Rc5 {[%emt 0:00:38]} Kf6 {[%emt 0:00:15]} 55. Kh6 {[%emt 0:00:24]} Rg4 {[%emt 0:00:10]} 56. Rc6+ {[%emt 0:00:09]} Kf5 {[%emt 0:00:05]} 1/2-1/2

[Event "6th Karoun Masters Cup 2019"]
[Site "Ahvaz"]
[Date "2019.02.21"]
[Round "1.2"]
[White "Azadi, Amirmohammad"]
[Black "Bernadskiy, Vitaliy"]
[Result "1/2-1/2"]
[ECO "A36"]
[WhiteElo "2109"]
[BlackElo "2570"]
[Annotator "ChessBase"]
[PlyCount "242"]
[EventDate "2019.02.21"]
[EventType "swiss"]
[EventRounds "9"]
[EventCountry "IRI"]
[SourceTitle "playchess.com"]
[Source "ChessBase"]
[SourceQuality "1"]
[TimeControl "5400+30"]

1. c4 {[%emt 0:00:00]} g6 {[%emt 0:00:00]} 2. g3 {[%emt 0:00:00]} Bg7 {[%emt 0:00:03]} 3. Bg2 {[%emt 0:00:06]} c5 {[%emt 0:00:36]} 4. Nc3 {[%emt 0:00:15]} Nc6 {[%emt 0:00:03]} 5. a3 {[%emt 0:00:49]} d6 {[%emt 0:00:56]} 6. Nf3 {[%emt 0:00:21]} e6 {[%emt 0:01:17]} 7. O-O {[%emt 0:00:37]} Nge7 {[%emt 0:00:02]} 8. d3 {[%emt 0:01:19]} O-O {[%emt 0:00:12]} 9. Bd2 {[%emt 0:00:45]} Qd7 {[%emt 0:01:05]} 10. Rb1 {[%emt 0:00:50]} b6 {[%emt 0:00:06]} 11. Qc1 {[%emt 0:01:22]} Rd8 {[%emt 0:00:56]} 12. Bh6 {[%emt 0:02:41]} Bh8 {[%emt 0:00:14]} 13. b4 {[%emt 0:02:25]} Bb7 {[%emt 0:00:04]} 14. Bg5 {[%emt 0:07:32]} f6 {[%emt 0:07:02]} 15. Bd2 {[%emt 0:04:20]} Rac8 {[%emt 0:00:05]} 16. bxc5 {[%emt 0:04:24]} dxc5 {[%emt 0:00:13]} 17. Nb5 {[%emt 0:00:05]} e5 {[%emt 0:00:37]} 18. a4 {[%emt 0:01:13]} a5 {[%emt 0:00:28]} 19. Bc3 {[%emt 0:02:45]} Nb4 {[%emt 0:01:56]} 20. Qb2 {[%emt 0:03:46]} Nec6 {[%emt 0:03:23]} 21. Nd2 {[%emt 0:02:22]} Nd4 {[%emt 0:02:02]} 22. Bxd4 {[%emt 0:01:47]} exd4 {[%emt 0:01:11]} 23. Bxb7 {[%emt 0:15:47]} Qxb7 {[%emt 0:00:04]} 24. f4 {[%emt 0:00:17]} f5 {[%emt 0:01:25]} 25. Nf3 {[%emt 0:00:13]} Rc6 {[%emt 0:01:03]} 26. Rf2 {[%emt 0:01:15]} Re6 {[%emt 0:00:27]} 27. Qd2 {[%emt 0:08:50]} Qe7 {[%emt 0:00:50]} 28. Rb2 {[%emt 0:07:46]} Bf6 {[%emt 0:01:18]} 29. Qd1 {[%emt 0:00:21]} h6 {[%emt 0:00:21]} 30. Qf1 {[%emt 0:00:23]} Re8 {[%emt 0:01:57]} 31. Qh3 {[%emt 0:00:59]} Qg7 {[%emt 0:01:32]} 32. Rd2 {[%emt 0:02:54]} R8e7 {[%emt 0:00:26]} 33. Rg2 {[%emt 0:00:37]} h5 {[%emt 0:01:21]} 34. Rf2 {[%emt 0:04:05]} Qh6 {[%emt 0:01:22]} 35. Na3 {[%emt 0:02:05]} Nc6 {[%emt 0:01:40]} 36. Rb2 {[%emt 0:03:15]} Nb4 {[%emt 0:01:42]} 37. Rd2 {[%emt 0:00:01]} Na6 {[%emt 0:02:36]} 38. Rb2 {[%emt 0:00:41]} Rh7 {[%emt 0:00:32]} 39. Nh4 {[%emt 0:03:53]} Rhe7 {[%emt 0:01:29]} 40. Nf3 {[%emt 0:00:03]} Nb8 {[%emt 0:00:34]} 41. Nb5 {[%emt 0:00:40]} Nc6 {[%emt 0:00:53]} 42. Na3 {[%emt 0:00:22]} Nd8 {[%emt 0:00:05]} 43. Qf1 {[%emt 0:00:12]} h4 {[%emt 0:01:10]} 44. Qb1 {[%emt 0:04:00]} Rb7 {[%emt 0:01:33]} 45. Qf1 {[%emt 0:02:07]} Rh7 {[%emt 0:01:08]} 46. Rg2 {[%emt 0:00:50]} hxg3 {[%emt 0:00:56]} 47. hxg3 {[%emt 0:00:31]} Qf8 {[%emt 0:00:55]} 48. Rh2 {[%emt 0:00:47]} Rxh2 {[%emt 0:01:57]} 49. Kxh2 {[%emt 0:02:19]} Nf7 {[%emt 0:00:46]} 50. Nb5 {[%emt 0:00:33]} Qe7 {[%emt 0:00:42]} 51. Kg2 {[%emt 0:01:23]} Nh6 {[%emt 0:00:04]} 52. Kf2 {[%emt 0:01:12]} Re3 {[%emt 0:00:31]} 53. Qh1 {[%emt 0:01:30]} Ng4+ {[%emt 0:00:35]} 54. Kf1 {[%emt 0:00:03]} Kg7 {[%emt 0:01:20]} 55. Na3 {[%emt 0:01:44]} Qd7 {[%emt 0:01:03]} 56. Nb5 {[%emt 0:00:28]} Re8 {[%emt 0:00:21]} 57. Qg1 {[%emt 0:00:53]} Rh8 {[%emt 0:00:49]} 58. Ke1 {[%emt 0:00:35]} Qe7 {[%emt 0:00:37]} 59. Na3 {[%emt 0:00:38]} Qe3 {[%emt 0:00:23]} 60. Rb1 {[%emt 0:00:51]} Qe6 {[%emt 0:03:59]} 61. Nc2 {[%emt 0:00:28]} Qc6 {[%emt 0:01:59]} 62. Rb5 {[%emt 0:00:25]} Nh6 {[%emt 0:00:41]} 63. Qg2 {[%emt 0:01:36]} Nf7 {[%emt 0:00:38]} 64. Nh4 {[%emt 0:00:26]} Qxg2 {[%emt 0:00:53]} 65. Nxg2 {[%emt 0:00:02]} Rh1+ {[%emt 0:00:04]} 66. Kf2 {[%emt 0:00:14]} Rc1 {[%emt 0:00:26]} 67. Nge1 {[%emt 0:00:12]} g5 {[%emt 0:04:27]} 68. fxg5 {[%emt 0:01:39]} Bxg5 {[%emt 0:00:08]} 69. Rxb6 {[%emt 0:00:29]} Ne5 {[%emt 0:00:37]} 70. Rb2 {[%emt 0:00:25]} Ng4+ {[%emt 0:00:52]} 71. Kg2 {[%emt 0:00:27]} Bd2 {[%emt 0:00:47]} 72. Nf3 {[%emt 0:02:31]} Bc3 {[%emt 0:01:40]} 73. Rb7+ {[%emt 0:00:32]} Kf6 {[%emt 0:00:03]} 74. Na3 {[%emt 0:00:51]} Ra1 {[%emt 0:01:51]} 75. Nb5 {[%emt 0:00:33]} Ra2 {[%emt 0:00:04]} 76. Rb6+ {[%emt 0:00:37]} Kg7 {[%emt 0:00:15]} 77. Rb7+ {[%emt 0:00:06]} Kh6 {[%emt 0:00:15]} 78. Re7 {[%emt 0:00:53]} Rxa4 {[%emt 0:00:26]} 79. Nd6 {[%emt 0:00:44]} Ne3+ {[%emt 0:00:17]} 80. Kh3 {[%emt 0:00:21]} Ra1 {[%emt 0:00:33]} 81. Re6+ {[%emt 0:00:36]} Kh5 {[%emt 0:02:02]} 82. Kh2 {[%emt 0:00:54]} Rb1 {[%emt 0:01:30]} 83. Ne8 {[%emt 0:00:42]} Ng4+ {[%emt 0:00:36]} 84. Kg2 {[%emt 0:00:01]} Rb7 {[%emt 0:00:21]} 85. Nh4 {[%emt 0:00:59]} a4 {[%emt 0:02:00]} 86. Ng6 {[%emt 0:00:27]} Bd2 {[%emt 0:00:26]} 87. Ne7 {[%emt 0:00:01]} Bh6 {[%emt 0:00:26]} 88. Nd5 {[%emt 0:01:19]} Ra7 {[%emt 0:04:32]} 89. Nef6+ {[%emt 0:00:41]} Nxf6 {[%emt 0:00:20]} 90. Nxf6+ {[%emt 0:00:02]} Kg6 {[%emt 0:02:27]} 91. Ng4+ {[%emt 0:00:09]} Kf7 {[%emt 0:00:27]} 92. Rxh6 {[%emt 0:00:40]} Kg7 {[%emt 0:00:03]} 93. Rh4 {[%emt 0:00:32]} a3 {[%emt 0:00:26]} 94. Nh6 {[%emt 0:00:54]} f4 {[%emt 0:08:22]} 95. Rxf4 {[%emt 0:00:36]} Kxh6 {[%emt 0:00:10]} 96. Rf1 {[%emt 0:00:04]} Re7 {[%emt 0:00:45]} 97. Rf6+ {[%emt 0:00:34]} Kg5 {[%emt 0:00:03]} 98. Ra6 {[%emt 0:00:25]} Rxe2+ {[%emt 0:00:05]} 99. Kh3 {[%emt 0:00:24]} a2 {[%emt 0:00:20]} 100. Ra5 {[%emt 0:00:01]} Kf6 {[%emt 0:00:08]} 101. Kg4 {[%emt 0:00:45]} Rd2 {[%emt 0:00:55]} 102. Kf4 {[%emt 0:00:11]} Rxd3 {[%emt 0:01:39]} 103. Ra6+ {[%emt 0:00:01]} Ke7 {[%emt 0:00:15]} 104. Rxa2 {[%emt 0:00:01]} Rc3 {[%emt 0:00:08]} 105. Ra4 {[%emt 0:00:04]} Rc1 {[%emt 0:03:45]} 106. g4 {[%emt 0:00:47]} Ke6 {[%emt 0:01:25]} 107. Ra6+ {[%emt 0:00:20]} Kd7 {[%emt 0:00:04]} 108. Ra4 {[%emt 0:00:12]} Rf1+ {[%emt 0:00:43]} 109. Ke4 {[%emt 0:00:09]} Kc6 {[%emt 0:02:20]} 110. Ra6+ {[%emt 0:00:12]} Kb7 {[%emt 0:00:06]} 111. Ra2 {[%emt 0:00:43]} Kc6 {[%emt 0:01:16]} 112. Ra6+ {[%emt 0:00:11]} Kc7 {[%emt 0:00:05]} 113. Ra2 {[%emt 0:00:15]} Kd6 {[%emt 0:00:40]} 114. Ra6+ {[%emt 0:00:05]} Ke7 {[%emt 0:00:04]} 115. Kd5 {[%emt 0:01:04]} d3 {[%emt 0:01:15]} 116. Ra2 {[%emt 0:00:08]} Rf8 {[%emt 0:00:11]} 117. Kxc5 {[%emt 0:00:34]} Rd8 {[%emt 0:00:03]} 118. Rd2 {[%emt 0:00:07]} Ke6 {[%emt 0:00:03]} 119. Kb4 {[%emt 0:00:54]} Ke5 {[%emt 0:00:14]} 120. Kc3 {[%emt 0:00:15]} Ke4 {[%emt 0:00:17]} 121. Rd1 {[%emt 0:00:13]} Ke5 1/2-1/2

[Event "6th Karoun Masters Cup 2019"]
[Site "Ahvaz"]
[Date "2019.02.21"]
[Round "1.3"]
[White "Mosadeghpour, Masoud"]
[Black "Mahdian, Anousha"]
[Result "1-0"]
[ECO "B12"]
[WhiteElo "2531"]
[BlackElo "2100"]
[Annotator "RC"]
[PlyCount "51"]
[EventDate "2019.02.21"]
[EventType "swiss"]
[EventRounds "9"]
[EventCountry "IRI"]
[SourceTitle "playchess.com"]
[Source "ChessBase"]
[SourceQuality "1"]
[TimeControl "5400+30"]

1. e4 {[%emt 0:00:00]} c6 {[%emt 0:00:00]} 2. d4 {[%emt 0:00:00]} d5 {[%emt 0:00:00]} 3. e5 {[%emt 0:00:00]} Bf5 {[%emt 0:00:00]} 4. h4 {[%emt 0:00:00]} h5 {[%emt 0:00:00]} 5. Bd3 {[%emt 0:00:00]} Bxd3 {[%emt 0:00:00]} 6. Qxd3 {[%emt 0:00:00]} e6 {[%emt 0:00:20]} 7. Bg5 {[%emt 0:00:00]} Qb6 {[%emt 0:00:03]} 8. Nd2 {[%emt 0:00:00]} c5 {[%emt 0:00:03]} 9. c4 {[%emt 0:00:05]} Qxb2 {[%emt 0:00:04]} 10. Rd1 {[%emt 0:00:04]} Nc6 {[%emt 0:01:54]} 11. Ngf3 {[%emt 0:00:32]} Nge7 {[%emt 0:18:35]} 12. O-O {[%emt 0:02:01]} Nb4 {[%emt 0:03:41]} 13. Qe2 {[%emt 0:13:55]} Nec6 {[%emt 0:13:32]} 14. cxd5 {[%emt 0:09:18]} Nxd5 {[%emt 0:02:53]} 15. Rb1 {[%emt 0:05:11]} Nc3 {[%emt 0:13:30]} 16. Qc4 {[%emt 0:20:41]} b5 {[%emt 0:02:26]} 17. Rxb2 {[%emt 0:18:01]} bxc4 {[%emt 0:00:05]} 18. Nxc4 {[%emt 0:00:05]} cxd4 {[%emt 0:03:35]} 19. Rb7 {[%emt 0:01:42]} Rc8 {[%emt 0:01:25]} 20. Nd6+ {[%emt 0:00:53]} Bxd6 {[%emt 0:00:09]} 21. exd6 {[%emt 0:00:01]} O-O {[%emt 0:13:24]} 22. d7 {[%emt 0:00:13]} Rb8 {[%emt 0:00:13]} 23. Rc7 {[%emt 0:01:26]} Rb6 {[%emt 0:08:32]} 24. Nxd4 {[%emt 0:06:05]} Nxd4 {[%emt 0:00:18]} 25. Be7 {[%emt 0:00:22]} e5 {[%emt 0:08:55]} 26. Rc8 {[%emt 0:01:29]} 1-0

[Event "6th Karoun Masters Cup 2019"]
[Site "Ahvaz"]
[Date "2019.02.22"]
[Round "2.1"]
[White "Dilanyan, Grigor"]
[Black "Mosadeghpour, Masoud"]
[Result "0-1"]
[ECO "A05"]
[WhiteElo "2241"]
[BlackElo "2531"]
[Annotator "RC"]
[PlyCount "116"]
[EventDate "2019.02.21"]
[EventType "swiss"]
[EventRounds "9"]
[EventCountry "IRI"]
[SourceTitle "playchess.com"]
[Source "ChessBase"]
[SourceQuality "1"]
[TimeControl "5400+30"]

1. Nf3 {[%emt 0:00:00]} Nf6 {[%emt 0:05:48]} 2. g3 {[%emt 0:00:31]} g6 {[%emt 0:00:10]} 3. b3 {[%emt 0:00:22]} Bg7 {[%emt 0:00:07]} 4. Bb2 {[%emt 0:00:02]} O-O {[%emt 0:00:33]} 5. Bg2 {[%emt 0:00:08]} d5 {[%emt 0:00:05]} 6. c4 {[%emt 0:03:28]} Nc6 {[%emt 0:03:18]} 7. d4 {[%emt 0:04:33]} a5 {[%emt 0:05:40]} 8. Nc3 {[%emt 0:06:18]} e6 {[%emt 0:24:52]} 9. O-O {[%emt 0:07:01]} b6 {[%emt 0:03:18]} 10. Ne5 {[%emt 0:06:24]} Bb7 {[%emt 0:00:06]} 11. Rc1 {[%emt 0:02:59]} Rc8 {[%emt 0:11:45]} 12. e3 {[%emt 0:13:16]} Ne7 {[%emt 0:05:53]} 13. Qc2 {[%emt 0:10:38]} Nd7 {[%emt 0:03:15]} 14. cxd5 {[%emt 0:11:16]} exd5 {[%emt 0:06:06]} 15. Rfd1 {[%emt 0:11:00]} c6 {[%emt 0:05:20]} 16. Bh3 {[%emt 0:02:46]} f5 {[%emt 0:03:06]} 17. f4 {[%emt 0:06:55]} b5 {[%emt 0:05:59]} 18. Ne2 {[%emt 0:05:42]} Nxe5 {[%emt 0:01:25]} 19. dxe5 {[%emt 0:00:08]} c5 {[%emt 0:00:33]} 20. Nc3 {[%emt 0:01:58]} Qb6 {[%emt 0:03:11]} 21. a4 {[%emt 0:00:02]} c4 {[%emt 0:03:24]} 22. Nxb5 {[%emt 0:00:25]} Qxe3+ {[%emt 0:00:22]} 23. Qf2 {[%emt 0:01:14]} Qxb3 {[%emt 0:02:40]} 24. Ba3 Qxa4 {[%emt 0:01:17]} 25. Qb6 {[%emt 0:04:38]} Bc6 {[%emt 0:02:17]} 26. Bxe7 {[%emt 0:00:02]} Qxb5 {[%emt 0:00:12]} 27. Qxb5 {[%emt 0:00:02]} Bxb5 {[%emt 0:00:04]} 28. Rxd5 {[%emt 0:00:11]} Rf7 {[%emt 0:01:19]} 29. Bd6 {[%emt 0:00:54]} Rb7 {[%emt 0:01:06]} 30. Bg2 {[%emt 0:00:23]} Bf8 {[%emt 0:00:43]} 31. Rd4 {[%emt 0:01:39]} Rb6 {[%emt 0:00:27]} 32. Bd5+ {[%emt 0:00:27]} Kg7 {[%emt 0:00:01]} 33. Be6 {[%emt 0:00:32]} Bxd6 {[%emt 0:00:48]} 34. exd6 {[%emt 0:00:31]} Rd8 {[%emt 0:00:00]} 35. Bxc4 {[%emt 0:00:28]} Rc6 {[%emt 0:00:11]} 36. Rc2 {[%emt 0:00:36]} Rdc8 {[%emt 0:01:51]} 37. d7 {[%emt 0:00:26]} Rd8 {[%emt 0:00:01]} 38. Kf2 {[%emt 0:00:30]} a4 {[%emt 0:00:53]} 39. Ke3 {[%emt 0:00:33]} a3 {[%emt 0:00:00]} 40. Kd2 {[%emt 0:00:29]} Bxc4 {[%emt 0:00:35]} 41. Rcxc4 {[%emt 0:00:19]} Rxc4 {[%emt 0:00:29]} 42. Rxc4 {[%emt 0:00:01]} Rxd7+ {[%emt 0:00:06]} 43. Kc2 {[%emt 0:00:08]} Re7 {[%emt 0:01:39]} 44. Ra4 {[%emt 0:01:02]} Re3 {[%emt 0:00:02]} 45. Kd2 {[%emt 0:00:50]} Rb3 {[%emt 0:00:19]} 46. Ra7+ {[%emt 0:00:30]} Kh6 {[%emt 0:00:28]} 47. Ke2 {[%emt 0:00:37]} Rb2+ {[%emt 0:01:01]} 48. Kf3 {[%emt 0:00:01]} a2 {[%emt 0:00:14]} 49. h3 {[%emt 0:00:51]} Rh2 {[%emt 0:00:18]} 50. Ra6 {[%emt 0:00:40]} Kh5 {[%emt 0:00:57]} 51. Ra7 {[%emt 0:00:27]} Kh6 {[%emt 0:00:42]} 52. h4 {[%emt 0:00:29]} Rb2 {[%emt 0:00:23]} 53. Ke3 {[%emt 0:00:10]} Kh5 {[%emt 0:00:19]} 54. Rxh7+ {[%emt 0:00:54]} Kg4 {[%emt 0:00:01]} 55. Ra7 {[%emt 0:00:10]} Kxg3 {[%emt 0:00:15]} 56. Ra6 {[%emt 0:00:27]} Kxh4 {[%emt 0:00:19]} 57. Kf3 {[%emt 0:00:47]} Rb3+ {[%emt 0:00:44]} 58. Kf2 {[%emt 0:00:36]} Kg4 {[%emt 0:00:21]} 0-1

[Event "6th Karoun Masters Cup 2019"]
[Site "Ahvaz"]
[Date "2019.02.22"]
[Round "2.3"]
[White "Sedaghati, Mehrdad"]
[Black "Khodashenas, Mersad"]
[Result "1-0"]
[ECO "B12"]
[WhiteElo "2219"]
[BlackElo "2455"]
[Annotator "ChessBase"]
[PlyCount "111"]
[EventDate "2019.02.21"]
[EventType "swiss"]
[EventRounds "9"]
[EventCountry "IRI"]
[SourceTitle "playchess.com"]
[Source "ChessBase"]
[SourceQuality "1"]
[TimeControl "5400+30"]

1. e4 {[%emt 0:00:00]} c6 {[%emt 0:08:55]} 2. d4 {[%emt 0:00:03]} g6 {[%emt 0:00:01]} 3. Nf3 {[%emt 0:03:14]} Bg7 {[%emt 0:00:10]} 4. c3 {[%emt 0:03:07]} d5 {[%emt 0:02:17]} 5. Nbd2 {[%emt 0:00:24]} dxe4 {[%emt 0:02:20]} 6. Nxe4 {[%emt 0:00:05]} Nf6 {[%emt 0:00:03]} 7. Nxf6+ {[%emt 0:01:59]} exf6 {[%emt 0:00:01]} 8. Bc4 {[%emt 0:01:11]} O-O {[%emt 0:00:24]} 9. O-O {[%emt 0:00:18]} Nd7 {[%emt 0:00:29]} 10. Bf4 {[%emt 0:09:24]} Nb6 {[%emt 0:00:11]} 11. Bb3 {[%emt 0:00:02]} a5 {[%emt 0:01:36]} 12. a3 {[%emt 0:06:42]} Nd5 {[%emt 0:00:40]} 13. Bg3 {[%emt 0:02:28]} Bg4 {[%emt 0:00:23]} 14. h3 {[%emt 0:01:34]} Be6 {[%emt 0:03:18]} 15. c4 {[%emt 0:14:37]} Nb6 {[%emt 0:03:03]} 16. Qc2 {[%emt 0:02:46]} Qd7 {[%emt 0:02:16]} 17. Rad1 {[%emt 0:02:36]} Rfe8 {[%emt 0:06:32]} 18. Rfe1 {[%emt 0:02:09]} h5 {[%emt 0:13:33]} 19. Qc3 {[%emt 0:04:52]} Rec8 {[%emt 0:07:34]} 20. Rd2 {[%emt 0:05:13]} g5 {[%emt 0:02:29]} 21. h4 {[%emt 0:02:28]} g4 {[%emt 0:10:52]} 22. Nh2 {[%emt 0:00:13]} Bh6 {[%emt 0:00:07]} 23. Rdd1 {[%emt 0:01:20]} f5 {[%emt 0:02:54]} 24. Be5 {[%emt 0:04:03]} Qd8 {[%emt 0:06:05]} 25. g3 {[%emt 0:09:39]} Nd7 {[%emt 0:02:06]} 26. Nf1 {[%emt 0:01:38]} Nxe5 {[%emt 0:03:57]} 27. Rxe5 {[%emt 0:04:28]} Bg7 {[%emt 0:00:13]} 28. Ne3 {[%emt 0:00:18]} Bxe5 {[%emt 0:03:01]} 29. dxe5 {[%emt 0:00:04]} Qb6 {[%emt 0:03:21]} 30. Rd4 {[%emt 0:02:18]} a4 {[%emt 0:01:41]} 31. Bc2 {[%emt 0:05:47]} Qa5 {[%emt 0:00:12]} 32. Qd3 {[%emt 0:10:14]} Qxe5 {[%emt 0:00:02]} 33. Ng2 {[%emt 0:00:41]} Qf6 {[%emt 0:02:38]} 34. Qc3 {[%emt 0:00:20]} c5 {[%emt 0:01:52]} 35. Rxg4+ {[%emt 0:00:06]} Qg6 {[%emt 0:01:02]} 36. Rxg6+ fxg6 37. Nf4 {[%emt 0:00:53]} Bf7 {[%emt 0:00:01]} 38. Qf6 {[%emt 0:00:24]} Ra6 {[%emt 0:00:59]} 39. Qe7 {[%emt 0:00:17]} Re8 {[%emt 0:01:46]} 40. Qxb7 {[%emt 0:00:30]} Rd6 {[%emt 0:00:01]} 41. Nd5 {[%emt 0:00:56]} Re1+ {[%emt 0:00:01]} 42. Kg2 {[%emt 0:00:17]} Kg7 {[%emt 0:00:12]} 43. Bxa4 {[%emt 0:00:33]} Re4 {[%emt 0:00:29]} 44. b3 {[%emt 0:01:14]} Rde6 {[%emt 0:01:16]} 45. Bc6 {[%emt 0:00:18]} R4e5 {[%emt 0:00:42]} 46. a4 {[%emt 0:00:12]} f4 {[%emt 0:00:29]} 47. Nxf4 Re7 48. Qb6 {[%emt 0:00:58]} g5 {[%emt 0:00:02]} 49. hxg5 {[%emt 0:00:15]} Rxg5 {[%emt 0:00:42]} 50. Bd5 {[%emt 0:00:13]} Bxd5+ {[%emt 0:00:33]} 51. Nxd5 {[%emt 0:00:10]} Rf7 {[%emt 0:00:00]} 52. Qxc5 {[%emt 0:00:22]} Kh7 {[%emt 0:00:14]} 53. Qe3 {[%emt 0:00:33]} Rgf5 {[%emt 0:00:21]} 54. f4 {[%emt 0:00:12]} Kh6 {[%emt 0:00:22]} 55. Qe6+ {[%emt 0:00:08]} Kg7 {[%emt 0:00:05]} 56. a5 {[%emt 0:00:07]} 1-0

[Event "6th Karoun Masters Cup 2019"]
[Site "Ahvaz"]
[Date "2019.02.22"]
[Round "2.4"]
[White "Kreisl, Robert"]
[Black "Nadimifar, Adnan"]
[Result "1/2-1/2"]
[ECO "A05"]
[WhiteElo "2424"]
[BlackElo "2241"]
[Annotator "NA RC"]
[PlyCount "29"]
[EventDate "2019.02.21"]
[EventType "swiss"]
[EventRounds "9"]
[EventCountry "IRI"]
[SourceTitle "playchess.com"]
[Source "ChessBase"]
[SourceQuality "1"]
[TimeControl "5400+30"]

1. Nf3 {[%emt 0:00:00]} Nf6 {[%emt 0:00:44]} 2. g3 {[%emt 0:00:00]} g6 {[%emt 0:00:07]} 3. Bg2 {[%emt 0:00:00]} Bg7 {[%emt 0:00:06]} 4. O-O {[%emt 0:00:00]} O-O {[%emt 0:00:26]} 5. d4 {[%emt 0:00:31]} d5 {[%emt 0:00:17]} 6. c3 {[%emt 0:00:23]} c6 {[%emt 0:00:56]} 7. Bf4 {[%emt 0:00:13]} Qb6 {[%emt 0:00:55]} 8. Qb3 {[%emt 0:02:05]} Bf5 {[%emt 0:01:04]} 9. Nbd2 {[%emt 0:00:08]} Ne4 {[%emt 0:01:46]} 10. Nh4 {[%emt 0:08:59]} Nxd2 {[%emt 0:01:24]} 11. Bxd2 {[%emt 0:00:02]} Be6 {[%emt 0:01:34]} 12. Nf3 {[%emt 0:04:49]} Bf5 {[%emt 0:01:36]} 13. Nh4 {[%emt 0:09:53]} Be6 {[%emt 0:03:08]} 14. Nf3 {[%emt 0:20:53]} Bf5 {[%emt 0:02:25]} 15. Nh4 {[%emt 0:00:02]} 1/2-1/2